[Event "Swedish Chess Championship 2019: Minior-SM"]
[Site "Stiga Sports Arena, Arenatorget 1, Eskilstuna, Sweden, Sweden"]
[Date "2019.07.08"]
[Round "2.4"]
[White "Anfalt, Erik"]
[Black "Morell, Ludvig"]
[Result "1/2-1/2"]
[TimeControl "90 minutes for 40 moves + 30 minutes for the rest of the game + 30 seconds per move from move one"]
[WhiteFideId "1753533"]
[BlackFideId "1736779"]
[WhiteElo "1511"]
[BlackElo "1744"]

1. e4 {[%clk 01:30:58]} c5 {[%clk 01:30:39]} {[%emt 00:00:15]} 2. Nc3 {[%clk
01:31:22]} {[%emt 00:00:13]} Nc6 {[%clk 01:31:00]} {[%emt 00:00:09]} 3. f4
{[%clk 01:31:35]} {[%emt 00:00:17]} g6 {[%clk 01:31:14]} {[%emt 00:00:16]} 4.
Nf3 {[%clk 01:31:32]} {[%emt 00:00:33]} Bg7 {[%clk 01:31:04]} {[%emt 00:00:40]}
5. Bb5 {[%clk 01:31:45]} {[%emt 00:00:18]} a6 {[%clk 01:28:41]} {[%emt
00:02:53]} 6. Bxc6 {[%clk 01:31:23]} {[%emt 00:00:52]} dxc6 {[%clk 01:28:50]}
{[%emt 00:00:20]} 7. d3 {[%clk 01:30:53]} {[%emt 00:01:00]} Bg4 {[%clk
01:26:47]} {[%emt 00:02:32]} 8. O-O {[%clk 01:30:25]} {[%emt 00:00:59]} Nf6
{[%clk 01:25:27]} {[%emt 00:01:49]} 9. Qe1 {[%clk 01:29:49]} {[%emt 00:01:07]}
O-O {[%clk 01:20:51]} {[%emt 00:05:05]} 10. Qh4 {[%clk 01:28:55]} {[%emt
00:01:23]} Bxf3 {[%clk 01:13:11]} {[%emt 00:08:13]} 11. Rxf3 {[%clk 01:29:21]}
{[%emt 00:00:04]} Qd7 {[%clk 01:09:08]} {[%emt 00:04:31]} 12. f5 {[%clk
01:26:02]} {[%emt 00:03:50]} e6 {[%clk 01:06:32]} {[%emt 00:03:04]} 13. Bg5
{[%clk 01:24:36]} {[%emt 00:01:59]} Qd4+ {[%clk 01:05:01]} {[%emt 00:01:59]} 14.
Kh1 {[%clk 01:23:20]} {[%emt 00:01:48]} exf5 {[%clk 01:04:14]} {[%emt
00:01:16]} 15. Raf1 {[%clk 01:20:50]} {[%emt 00:03:01]} Nh5 {[%clk 00:46:21]}
{[%emt 00:18:23]} 16. exf5 {[%clk 01:11:52]} {[%emt 00:09:28]} Qxh4 {[%clk
00:45:46]} {[%emt 00:01:05]} 17. Bxh4 {[%clk 01:12:20]} {[%emt 00:00:02]} Bxc3
{[%clk 00:30:53]} {[%emt 00:15:23]} 18. bxc3 {[%clk 01:12:28]} {[%emt
00:00:22]} Ng7 {[%clk 00:30:43]} {[%emt 00:00:38]} 19. fxg6 {[%clk 01:12:00]}
{[%emt 00:00:58]} fxg6 {[%clk 00:29:51]} {[%emt 00:01:22]} 20. Be7 {[%clk
01:12:13]} {[%emt 00:00:17]} Rxf3 {[%clk 00:29:45]} {[%emt 00:00:35]} 21. gxf3
{[%clk 01:12:16]} {[%emt 00:00:28]} Re8 {[%clk 00:29:46]} {[%emt 00:00:19]} 22.
Bxc5 {[%clk 01:12:26]} {[%emt 00:00:31]} Re2 {[%clk 00:30:00]} {[%emt
00:00:13]} 23. Rf2 {[%clk 01:12:42]} {[%emt 00:00:16]} Re1+ {[%clk 00:30:19]}
{[%emt 00:00:10]} 24. Kg2 {[%clk 01:13:09]} {[%emt 00:00:03]} Nf5 {[%clk
00:29:22]} {[%emt 00:01:28]} 25. c4 {[%clk 01:11:16]} {[%emt 00:02:24]} Ra1
{[%clk 00:25:25]} {[%emt 00:04:24]} 26. a3 {[%clk 01:09:15]} {[%emt 00:02:33]}
Re1 {[%clk 00:23:43]} {[%emt 00:02:07]} 27. Kh3 {[%clk 01:07:54]} {[%emt
00:01:55]} Kf7 {[%clk 00:22:18]} {[%emt 00:01:54]} 28. Bb4 {[%clk 01:04:55]}
{[%emt 00:03:30]} Re6 {[%clk 00:19:13]} {[%emt 00:03:29]} 29. Bc3 {[%clk
01:03:41]} {[%emt 00:01:51]} Ke7 {[%clk 00:17:15]} {[%emt 00:02:23]} 30. Rd2
{[%clk 01:02:44]} {[%emt 00:01:30]} Kf7 {[%clk 00:13:14]} {[%emt 00:04:31]} 31.
Bb4 {[%clk 00:59:24]} {[%emt 00:03:51]} Nd4 {[%clk 00:12:09]} {[%emt 00:01:34]}
32. Kg4 {[%clk 00:58:07]} {[%emt 00:01:47]} h5+ {[%clk 00:11:48]} {[%emt
00:00:52]} 33. Kg3 {[%clk 00:56:05]} {[%emt 00:02:32]} b6 {[%clk 00:10:42]}
{[%emt 00:01:36]} 34. a4 {[%clk 00:54:06]} {[%emt 00:02:29]} g5 {[%clk
00:08:40]} {[%emt 00:02:32]} 35. a5 {[%clk 00:51:18]} {[%emt 00:03:19]} b5
{[%clk 00:08:10]} {[%emt 00:00:59]} 36. Bc5 {[%clk 00:49:36]} {[%emt 00:02:13]}
Nf5+ {[%clk 00:06:23]} {[%emt 00:02:16]} 37. Kf2 {[%clk 00:49:48]} {[%emt
00:00:16]} Nh4 {[%clk 00:04:14]} {[%emt 00:02:43]} 38. cxb5 {[%clk 00:47:54]}
{[%emt 00:02:24]} cxb5 {[%clk 00:04:34]} {[%emt 00:00:10]} 39. Re2 {[%clk
00:46:56]} {[%emt 00:01:27]} Rf6 {[%clk 00:01:26]} {[%emt 00:03:37]} 40. Re7+
{[%clk 00:47:23]} {[%emt 00:00:04]} Kg6 {[%clk 00:01:44]} {[%emt 00:00:11]} 41.
Re3 {[%clk 00:46:15]} {[%emt 00:01:39]} g4 {[%clk 00:29:22]} {[%emt 00:02:51]}
42. Be7 {[%clk 01:11:44]} {[%emt 00:05:02]} Rxf3+ {[%clk 00:29:20]} {[%emt
00:00:32]} 43. Rxf3 {[%clk 01:12:12]} {[%emt 00:00:02]} Nxf3 {[%clk 00:29:40]}
{[%emt 00:00:10]} 44. h3 {[%clk 01:11:31]} {[%emt 00:01:09]} Nd4 {[%clk
00:28:03]} {[%emt 00:02:06]} 45. c4 {[%clk 01:11:32]} {[%emt 00:00:32]} bxc4
{[%clk 00:28:03]} {[%emt 00:00:31]} 46. dxc4 {[%clk 01:10:38]} {[%emt
00:01:24]} Nc6 {[%clk 00:28:24]} {[%emt 00:00:08]} 47. hxg4 {[%clk 01:08:57]}
{[%emt 00:02:10]} hxg4 {[%clk 00:27:40]} {[%emt 00:01:13]} 48. Ba3 {[%clk
01:08:56]} {[%emt 00:00:28]} Nxa5 {[%clk 00:27:54]} {[%emt 00:00:20]} 49. c5
{[%clk 01:08:50]} {[%emt 00:00:36]} Kf5 {[%clk 00:26:56]} {[%emt 00:01:28]} 50.
Kg3 {[%clk 01:08:21]} {[%emt 00:00:59]} Nc6 {[%clk 00:26:39]} {[%emt 00:00:47]}
51. Bb2 {[%clk 01:07:58]} {[%emt 00:00:54]} a5 {[%clk 00:26:33]} {[%emt
00:00:36]} 52. Bc3 {[%clk 01:07:58]} {[%emt 00:00:29]} a4 {[%clk 00:26:52]}
{[%emt 00:00:11]} 53. Bb2 {[%clk 01:08:13]} {[%emt 00:00:15]} Kg5 {[%clk
00:22:11]} {[%emt 00:05:11]} 54. Bc1+ {[%clk 01:08:35]} {[%emt 00:00:08]} Kf5
{[%clk 00:22:18]} {[%emt 00:00:22]} 55. Bb2 {[%clk 01:09:03]} {[%emt 00:00:03]}
Ne5 {[%clk 00:21:03]} {[%emt 00:01:44]} 56. Ba3 {[%clk 01:08:34]} {[%emt
00:01:00]} Ke6 {[%clk 00:17:17]} {[%emt 00:04:16]} 57. Bb2 {[%clk 01:08:20]}
{[%emt 00:00:43]} Kd5 {[%clk 00:16:14]} {[%emt 00:01:33]} 58. Ba3 {[%clk
01:08:27]} {[%emt 00:00:23]} Kc6 {[%clk 00:14:41]} {[%emt 00:02:04]} 59. Bb2
{[%clk 01:08:47]} {[%emt 00:00:10]} Nd3 {[%clk 00:14:39]} {[%emt 00:00:31]} 60.
Ba3 {[%clk 01:09:15]} {[%emt 00:00:03]} Ne5 {[%clk 00:12:35]} {[%emt 00:02:32]}
61. Kf4 {[%clk 01:09:08]} {[%emt 00:00:38]} Nc4 {[%clk 00:11:54]} {[%emt
00:03:03]} 62. Bc1 {[%clk 01:09:26]} {[%emt 00:00:12]} Kxc5 {[%clk 00:11:55]}
{[%emt 00:00:29]} 63. Kxg4 {[%clk 01:09:42]} {[%emt 00:00:14]} Kb4 {[%clk
00:11:40]} {[%emt 00:00:45]} 64. Bh6 {[%clk 01:09:30]} {[%emt 00:00:41]} Kb3
{[%clk 00:04:08]} {[%emt 00:08:03]} 65. Bf8 {[%clk 01:09:45]} {[%emt 00:00:16]}
Na5 {[%clk 00:04:11]} {[%emt 00:00:27]} 66. Kf3 {[%clk 01:09:44]} {[%emt
00:00:30]} Nc6 {[%clk 00:04:37]} {[%emt 00:00:04]} 67. Ke2 {[%clk 01:09:43]}
{[%emt 00:00:31]} Nb4 {[%clk 00:00:47]} {[%emt 00:04:21]} 68. Bxb4 {[%clk
01:09:46]} {[%emt 00:00:26]} Kxb4 {[%clk 00:01:08]} {[%emt 00:00:09]} 69. Kd2
{[%clk 01:10:14]} {[%emt 00:00:03]} 1/2-1/2

[Event "Swedish Chess Championship 2019: Minior-SM"]
[Site "Stiga Sports Arena, Arenatorget 1, Eskilstuna, Sweden, Sweden"]
[Date "2019.07.08"]
[Round "2.5"]
[White "Tran, Alva Ling"]
[Black "Gabrielsson, Lew"]
[Result "1-0"]
[TimeControl "90 minutes for 40 moves + 30 minutes for the rest of the game + 30 seconds per move from move one"]
[WhiteFideId "1753223"]
[BlackFideId "1754955"]
[WhiteElo "1712"]
[BlackElo "1399"]

1. e4 {[%clk 01:30:58]} {[%emt 00:00:01]} e5 {[%clk 01:30:50]} {[%emt
00:00:10]} 2. Nf3 {[%clk 01:31:17]} {[%emt 00:00:11]} Nc6 {[%clk 01:30:47]}
{[%emt 00:00:32]} 3. Bc4 {[%clk 01:31:38]} {[%emt 00:00:09]} Bc5 {[%clk
01:30:12]} {[%emt 00:01:05]} 4. c3 {[%clk 01:31:52]} {[%emt 00:00:16]} Nf6
{[%clk 01:28:53]} {[%emt 00:01:49]} 5. d4 {[%clk 01:32:01]} {[%emt 00:00:21]}
Be7 {[%clk 01:27:43]} {[%emt 00:01:40]} 6. dxe5 {[%clk 01:30:43]} {[%emt
00:01:49]} Nxe4 {[%clk 01:26:34]} {[%emt 00:01:39]} 7. Qd5 {[%clk 01:30:32]}
{[%emt 00:00:40]} O-O {[%clk 01:23:35]} {[%emt 00:03:30]} 8. Qxe4 {[%clk
01:29:55]} {[%emt 00:01:08]} d6 {[%clk 01:20:01]} {[%emt 00:04:02]} 9. O-O
{[%clk 01:23:59]} {[%emt 00:06:27]} Re8 {[%clk 01:14:21]} {[%emt 00:06:10]} 10.
Re1 {[%clk 01:15:10]} {[%emt 00:09:20]} Qd7 {[%clk 01:05:22]} {[%emt 00:09:28]}
11. exd6 {[%clk 01:01:15]} {[%emt 00:14:25]} cxd6 {[%clk 01:01:31]} {[%emt
00:04:20]} 12. Ng5 {[%clk 00:58:14]} {[%emt 00:03:31]} g6 {[%clk 00:54:16]}
{[%emt 00:07:44]} 13. Nxf7 {[%clk 00:49:50]} {[%emt 00:08:56]} Kg7 {[%clk
00:51:18]} {[%emt 00:03:27]} 14. Bh6+ {[%clk 00:49:28]} {[%emt 00:00:53]} Kg8
{[%clk 00:50:45]} {[%emt 00:01:02]} 15. Ne5+ {[%clk 00:44:38]} {[%emt
00:05:19]} Kh8 {[%clk 00:49:50]} {[%emt 00:01:24]} 16. Nxg6+ {[%clk 00:43:36]}
{[%emt 00:01:35]} hxg6 {[%clk 00:48:26]} {[%emt 00:01:53]} 17. Qxg6 {[%clk
00:43:45]} {[%emt 00:00:22]} Bf8 {[%clk 00:48:23]} {[%emt 00:00:33]} 18. Qg8#
{[%clk 00:44:03]} {[%emt 00:00:12]} 1-0

[Event "Swedish Chess Championship 2019: Minior-SM"]
[Site "Stiga Sports Arena, Arenatorget 1, Eskilstuna, Sweden, Sweden"]
[Date "2019.07.08"]
[Round "2.6"]
[White "Sandberg, Simon"]
[Black "Enholm, Herman"]
[Result "0-1"]
[TimeControl "90 minutes for 40 moves + 30 minutes for the rest of the game + 30 seconds per move from move one"]
[WhiteFideId "1735640"]
[BlackFideId "1744500"]
[WhiteElo "1421"]
[BlackElo "1695"]

1. e4 {[%clk 01:30:37]} {[%emt 00:00:21]} c5 {[%clk 01:30:23]} {[%emt
00:00:37]} 2. Nf3 {[%clk 01:30:46]} {[%emt 00:00:21]} e6 {[%clk 01:30:28]}
{[%emt 00:00:25]} 3. Nc3 {[%clk 01:31:00]} {[%emt 00:00:17]} Nc6 {[%clk
01:29:16]} {[%emt 00:01:40]} 4. d3 {[%clk 01:30:41]} {[%emt 00:00:49]} g6
{[%clk 01:27:48]} {[%emt 00:01:57]} 5. g3 {[%clk 01:31:03]} {[%emt 00:00:09]}
Bg7 {[%clk 01:26:47]} {[%emt 00:01:31]} 6. Bg2 {[%clk 01:31:10]} {[%emt
00:00:21]} Nge7 {[%clk 01:26:32]} {[%emt 00:00:46]} 7. Bg5 {[%clk 01:31:23]}
{[%emt 00:00:18]} O-O {[%clk 01:20:58]} {[%emt 00:06:04]} 8. Qd2 {[%clk
01:31:48]} {[%emt 00:00:06]} Nd4 {[%clk 01:18:59]} {[%emt 00:02:28]} 9. O-O
{[%clk 01:29:43]} {[%emt 00:02:35]} a6 {[%clk 01:09:59]} {[%emt 00:09:31]} 10.
a4 {[%clk 01:21:44]} {[%emt 00:08:28]} b6 {[%clk 01:09:40]} {[%emt 00:00:50]}
11. e5 {[%clk 01:09:06]} {[%emt 00:13:08]} Bb7 {[%clk 01:04:59]} {[%emt
00:05:11]} 12. Ne4 {[%clk 00:44:27]} {[%emt 00:25:09]} Nxf3+ {[%clk 01:02:41]}
{[%emt 00:02:47]} 13. Bxf3 {[%clk 00:44:12]} {[%emt 00:00:46]} Bxe5 {[%clk
00:41:36]} {[%emt 00:21:35]} 14. Nf6+ {[%clk 00:37:37]} {[%emt 00:07:05]} Bxf6
{[%clk 00:40:58]} {[%emt 00:01:07]} 15. Bxb7 {[%clk 00:28:31]} {[%emt
00:09:37]} Bxg5 {[%clk 00:40:20]} {[%emt 00:01:07]} 16. Qxg5 {[%clk 00:28:05]}
{[%emt 00:00:56]} Ra7 {[%clk 00:40:08]} {[%emt 00:00:42]} 17. Be4 {[%clk
00:27:20]} {[%emt 00:01:14]} d5 {[%clk 00:39:37]} {[%emt 00:01:02]} 18. Bf3
{[%clk 00:26:12]} {[%emt 00:01:39]} Nf5 {[%clk 00:39:07]} {[%emt 00:00:59]} 19.
Qg4 {[%clk 00:23:27]} {[%emt 00:03:15]} Qf6 {[%clk 00:38:11]} {[%emt 00:01:25]}
20. c3 {[%clk 00:22:52]} {[%emt 00:01:06]} Rd8 {[%clk 00:34:00]} {[%emt
00:04:41]} 21. Qf4 {[%clk 00:22:50]} {[%emt 00:00:32]} Kg7 {[%clk 00:29:52]}
{[%emt 00:04:38]} 22. h4 {[%clk 00:22:59]} {[%emt 00:00:21]} e5 {[%clk
00:29:06]} {[%emt 00:01:16]} 23. Qg4 {[%clk 00:22:32]} {[%emt 00:00:57]} h5
{[%clk 00:28:03]} {[%emt 00:01:34]} 24. Qh3 {[%clk 00:22:55]} {[%emt 00:00:07]}
Nh6 {[%clk 00:22:42]} {[%emt 00:05:50]} 25. Kh2 {[%clk 00:23:13]} {[%emt
00:00:13]} Qxf3 {[%clk 00:22:18]} {[%emt 00:00:54]} 0-1

[Event "Swedish Chess Championship 2019: Minior-SM"]
[Site "Stiga Sports Arena, Arenatorget 1, Eskilstuna, Sweden, Sweden"]
[Date "2019.07.09"]
[Round "3.1"]
[White "Backlund, Elias"]
[Black "Falkevall, Axel"]
[Result "0-1"]
[TimeControl "90 minutes for 40 moves + 30 minutes for the rest of the game + 30 seconds per move from move one"]
[WhiteFideId "1753207"]
[BlackFideId "1735560"]
[WhiteElo "1656"]
[BlackElo "2067"]

1. d4 {[%clk 01:30:55]} {[%emt 00:00:04]} Nf6 {[%clk 01:30:53]} {[%emt
00:00:08]} 2. c4 {[%clk 01:31:18]} {[%emt 00:00:06]} e6 {[%clk 01:31:19]}
{[%emt 00:00:04]} 3. Nc3 {[%clk 01:31:42]} {[%emt 00:00:06]} Bb4 {[%clk
01:31:39]} {[%emt 00:00:10]} 4. Qc2 {[%clk 01:31:51]} {[%emt 00:00:21]} Nc6
{[%clk 01:31:51]} {[%emt 00:00:18]} 5. Nf3 {[%clk 01:31:49]} {[%emt 00:00:32]}
d6 {[%clk 01:31:51]} {[%emt 00:00:30]} 6. Bg5 {[%clk 01:31:30]} {[%emt
00:00:49]} O-O {[%clk 01:30:53]} {[%emt 00:01:28]} 7. e3 {[%clk 01:31:19]}
{[%emt 00:00:41]} h6 {[%clk 01:30:40]} {[%emt 00:00:42]} 8. Bh4 {[%clk
01:31:12]} {[%emt 00:00:38]} e5 {[%clk 01:29:57]} {[%emt 00:01:14]} 9. d5
{[%clk 01:28:29]} {[%emt 00:03:13]} Nb8 {[%clk 01:30:10]} {[%emt 00:00:17]} 10.
Be2 {[%clk 01:27:18]} {[%emt 00:01:40]} Nbd7 {[%clk 01:26:44]} {[%emt
00:03:56]} 11. O-O {[%clk 01:25:42]} {[%emt 00:02:06]} Bxc3 {[%clk 01:25:14]}
{[%emt 00:02:00]} 12. Qxc3 {[%clk 01:25:40]} {[%emt 00:00:31]} a5 {[%clk
01:24:44]} {[%emt 00:01:00]} 13. a4 {[%clk 01:21:15]} {[%emt 00:04:55]} Nc5
{[%clk 01:24:00]} {[%emt 00:01:13]} 14. Nd2 {[%clk 01:19:06]} {[%emt 00:02:39]}
Nxd5 {[%clk 01:15:48]} {[%emt 00:08:42]} 15. cxd5 {[%clk 01:16:27]} {[%emt
00:03:09]} Qxh4 {[%clk 01:15:51]} {[%emt 00:00:27]} 16. Nb3 {[%clk 01:14:33]}
{[%emt 00:02:24]} b6 {[%clk 01:12:17]} {[%emt 00:04:05]} 17. Nxc5 {[%clk
01:11:20]} {[%emt 00:03:43]} bxc5 {[%clk 01:12:31]} {[%emt 00:00:16]} 18. Bb5
{[%clk 01:04:38]} {[%emt 00:07:12]} Bb7 {[%clk 01:10:59]} {[%emt 00:02:01]} 19.
Rfd1 {[%clk 01:03:58]} {[%emt 00:01:11]} Qg5 {[%clk 01:05:16]} {[%emt
00:06:10]} 20. e4 {[%clk 00:57:03]} {[%emt 00:07:27]} f5 {[%clk 01:03:51]}
{[%emt 00:01:55]} 21. f3 {[%clk 00:56:47]} {[%emt 00:00:47]} fxe4 {[%clk
01:02:58]} {[%emt 00:01:24]} 22. fxe4 {[%clk 00:57:03]} {[%emt 00:00:14]} Rf4
{[%clk 01:01:18]} {[%emt 00:02:08]} 23. Qd3 {[%clk 00:53:46]} {[%emt 00:03:47]}
Qg6 {[%clk 00:59:19]} {[%emt 00:02:28]} 24. Re1 {[%clk 00:51:51]} {[%emt
00:02:26]} Raf8 {[%clk 00:58:28]} {[%emt 00:01:21]} 25. Re2 {[%clk 00:46:19]}
{[%emt 00:06:03]} Bc8 {[%clk 00:56:02]} {[%emt 00:02:56]} 26. g3 {[%clk
00:43:26]} {[%emt 00:03:23]} R4f6 {[%clk 00:50:50]} {[%emt 00:05:39]} 27. Qd2
{[%clk 00:41:09]} {[%emt 00:02:48]} Qf7 {[%clk 00:49:50]} {[%emt 00:01:27]} 28.
Kg2 {[%clk 00:38:20]} {[%emt 00:03:22]} Bg4 {[%clk 00:49:13]} {[%emt 00:01:04]}
0-1

[Event "Swedish Chess Championship 2019: Minior-SM"]
[Site "Stiga Sports Arena, Arenatorget 1, Eskilstuna, Sweden, Sweden"]
[Date "2019.07.09"]
[Round "3.2"]
[White "Wikman, Viktor"]
[Black "Strom-Engdahl, Alexander"]
[Result "0-1"]
[TimeControl "90 minutes for 40 moves + 30 minutes for the rest of the game + 30 seconds per move from move one"]
[WhiteFideId "1744720"]
[BlackFideId "1741586"]
[WhiteElo "1633"]
[BlackElo "1866"]

1. e4 {[%clk 01:30:45]} {[%emt 00:00:07]} e5 {[%clk 01:30:48]} {[%emt
00:00:12]} 2. Nf3 {[%clk 01:31:10]} {[%emt 00:00:06]} Nf6 {[%clk 01:31:12]}
{[%emt 00:00:06]} 3. d4 {[%clk 01:31:35]} {[%emt 00:00:06]} Nxe4 {[%clk
01:31:35]} {[%emt 00:00:06]} 4. Nxe5 {[%clk 01:31:56]} {[%emt 00:00:08]} d5
{[%clk 01:31:57]} {[%emt 00:00:09]} 5. Bd3 {[%clk 01:31:49]} {[%emt 00:00:36]}
Be7 {[%clk 01:23:12]} {[%emt 00:09:15]} 6. O-O {[%clk 01:31:04]} {[%emt
00:01:15]} O-O {[%clk 01:21:35]} {[%emt 00:02:07]} 7. c4 {[%clk 01:30:32]}
{[%emt 00:01:02]} Nc6 {[%clk 01:20:23]} {[%emt 00:01:42]} 8. cxd5 {[%clk
01:13:29]} {[%emt 00:17:33]} Qxd5 {[%clk 01:20:44]} {[%emt 00:00:09]} 9. Qf3
{[%clk 01:10:03]} {[%emt 00:03:56]} Nf6 {[%clk 01:19:54]} {[%emt 00:01:21]} 10.
Nxc6 {[%clk 01:04:33]} {[%emt 00:05:58]} bxc6 {[%clk 01:20:08]} {[%emt
00:00:16]} 11. Qxd5 {[%clk 01:04:25]} {[%emt 00:00:39]} cxd5 {[%clk 01:19:59]}
{[%emt 00:00:39]} 12. Bf4 {[%clk 01:00:41]} {[%emt 00:04:13]} c6 {[%clk
01:18:43]} {[%emt 00:01:47]} 13. Nd2 {[%clk 00:53:58]} {[%emt 00:07:12]} Be6
{[%clk 01:17:45]} {[%emt 00:01:29]} 14. Rac1 {[%clk 00:52:00]} {[%emt
00:02:27]} Bd7 {[%clk 01:16:29]} {[%emt 00:01:46]} 15. Nf3 {[%clk 00:49:46]}
{[%emt 00:02:45]} Nh5 {[%clk 01:14:18]} {[%emt 00:02:41]} 16. Bg3 {[%clk
00:42:47]} {[%emt 00:07:29]} Nxg3 {[%clk 01:12:37]} {[%emt 00:02:12]} 17. hxg3
{[%clk 00:40:38]} {[%emt 00:02:38]} Bf6 {[%clk 01:11:59]} {[%emt 00:01:08]} 18.
Rc5 {[%clk 00:38:20]} {[%emt 00:02:49]} a5 {[%clk 01:09:46]} {[%emt 00:02:43]}
19. a4 {[%clk 00:35:27]} {[%emt 00:03:23]} Rfb8 {[%clk 01:08:59]} {[%emt
00:01:17]} 20. Rb1 {[%clk 00:19:57]} {[%emt 00:15:59]} Rb4 {[%clk 01:09:17]}
{[%emt 00:00:12]} 21. b3 {[%clk 00:19:34]} {[%emt 00:00:54]} Bxd4 {[%clk
01:09:12]} {[%emt 00:00:34]} 22. Nxd4 {[%clk 00:19:57]} {[%emt 00:00:07]} Rxd4
{[%clk 01:09:38]} {[%emt 00:00:04]} 23. Be2 {[%clk 00:18:52]} {[%emt 00:01:35]}
Kf8 {[%clk 01:09:30]} {[%emt 00:00:38]} 24. Kf1 {[%clk 00:17:41]} {[%emt
00:01:41]} Ke7 {[%clk 01:09:52]} {[%emt 00:00:08]} 25. Rbc1 {[%clk 00:17:20]}
{[%emt 00:00:51]} Kd6 {[%clk 01:09:47]} {[%emt 00:00:35]} 26. R1c2 {[%clk
00:08:53]} {[%emt 00:08:56]} Rb4 {[%clk 01:08:17]} {[%emt 00:02:01]} 27. R2c3
{[%clk 00:06:54]} {[%emt 00:02:30]} Rxb3 {[%clk 01:07:57]} {[%emt 00:00:50]} 28.
Rxd5+ {[%clk 00:06:44]} {[%emt 00:00:40]} cxd5 {[%clk 01:08:17]} {[%emt
00:00:09]} 29. Rxb3 {[%clk 00:07:10]} {[%emt 00:00:04]} Bxa4 {[%clk 01:08:06]}
{[%emt 00:00:42]} 30. Rb7 {[%clk 00:07:17]} {[%emt 00:00:23]} Bd7 {[%clk
01:08:26]} {[%emt 00:00:10]} 31. Ke1 {[%clk 00:07:27]} {[%emt 00:00:20]} a4
{[%clk 01:08:49]} {[%emt 00:00:08]} 32. Kd2 {[%clk 00:06:41]} {[%emt 00:01:16]}
0-1